fUST/lending_fUST_20251211
["ID","MTS","AMOUNT","RATE_DAILY","PERIOD"]
[398140542,1765399846199,-4078.02203934,0.000127,2]
[398141874,1765399865066,151.14,6.5e-05,2]
[398141875,1765399925616,151.14,6.5e-05,2]
[398141876,1765399930865,150.0,6.747e-05,2]
[398141881,1765399985430,151.13,6.5e-05,2]
[398141882,1765400003588,150.0,6.751e-05,2]
[398141889,1765400044706,151.14,6.5e-05,2]
[398141895,1765400075281,150.0,6.748e-05,2]
[398141896,1765400104178,151.13,6.5e-05,2]
[398141898,1765400146414,150.0,6.735e-05,2]
[398141905,1765400216672,150.0,6.731e-05,2]
[398141907,1765400286235,150.0,6.732e-05,2]
[398141908,1765400355309,150.0,6.739e-05,2]
[398141910,1765400423143,150.0,6.73e-05,2]
[398141911,1765400490926,150.0,6.732e-05,2]
[398141914,1765400557982,150.0,6.733e-05,2]
[398141915,1765400686756,150.0,6.74e-05,2]
[398141916,1765400751642,150.0,6.746e-05,2]
[398141917,1765400816379,150.0,6.743e-05,2]
[398141918,1765400882182,150.0,6.748e-05,2]
[398141919,1765401010326,150.0,6.748e-05,2]
[398141958,1765401032344,-150.0,7.068e-05,2]
[398141959,1765401032354,-282.96364319,7.068e-05,2]
[398141960,1765401032364,-520.0,7.068e-05,2]
[398141961,1765401032374,-150.0,7.101e-05,2]
[398141962,1765401032384,-150.0,7.333e-05,2]
[398141963,1765401032394,-150.0,7.682e-05,2]
[398141965,1765401032405,-177.0,9.101e-05,2]
[398141967,1765401032415,-204.0,0.00011101,2]
[398141970,1765401032425,-2268.58186717,0.00011128,2]
[398141971,1765401032434,-300.0,0.00011544,2]
[398141973,1765401032444,-300.0,0.00011544,2]
[398141974,1765401032454,-161.0,0.00011544,2]
[398141975,1765401032463,-1200.0,0.00011544,2]
[398141976,1765401032473,-200.96095575,0.00011545,2]
[398141977,1765401032483,-361.72972036,0.00011545,2]
[398141978,1765401032493,-643.07505841,0.00011545,2]
[398141979,1765401032503,-1003.79997399,0.00011545,2]
[398141980,1765401032513,-300.0,0.00011775,2]
[398141981,1765401032523,-300.0,0.00011775,2]
[398141982,1765401032533,-300.0,0.00011775,2]
[398141983,1765401032543,-300.0,0.00011775,2]
[398141984,1765401032553,-300.0,0.00011775,2]
[398141985,1765401032562,-300.0,0.00011775,2]
[398141986,1765401032575,-300.0,0.00011775,2]
[398141987,1765401032584,-300.0,0.00011775,2]
[398141988,1765401032593,-300.0,0.00011775,2]
[398141989,1765401032602,-300.0,0.00011775,2]
[398141990,1765401032611,-300.0,0.00011775,2]
[398141991,1765401032620,-300.0,0.00011775,2]
[398141992,1765401032630,-300.0,0.00011775,2]
[398141993,1765401032639,-300.0,0.00011775,2]
[398141994,1765401032649,-300.0,0.00011775,2]
[398141995,1765401032659,-600.0,0.00012009,2]
[398141996,1765401032668,-153.0,0.00012055,2]
[398141997,1765401032678,-266.28731902,0.00012152,2]
[398141998,1765401032687,-479.31717424,0.00012152,2]
[398141999,1765401032696,-852.11942087,0.00012152,2]
[398142000,1765401032705,-1330.10515851,0.00012152,2]
[398142001,1765401032715,-481.89274313,0.00012152,2]
[398142002,1765401032724,-867.40693763,0.00012152,2]
[398142003,1765401032733,-1542.05677802,0.00012152,2]
[398142004,1765401032742,-2409.46371565,0.00012152,2]
[398142005,1765401032751,-3469.62775054,0.00012152,2]
[398142006,1765401032760,-4722.54888268,0.00012152,2]
[398142007,1765401032769,-1000.0,0.00012433,2]
[398142008,1765401032779,-533.88981491,0.00012592,2]
[398142009,1765401032788,-1000.0,0.00012592,2]
[398142010,1765401032798,-500.0,0.00012599,2]
[398142011,1765401032807,-500.0,0.00012599,2]
[398142012,1765401032816,-332.61877577,0.00012599,2]
[398142013,1765401032826,-500.0,0.00012599,2]
[398142014,1765401032836,-539.88676305,0.00012599,2]
[398142015,1765401032845,-235.60170719,0.00012599,2]
[398142016,1765401032855,-500.0,0.00012599,2]
[398142017,1765401032864,-500.0,0.00012599,2]
[398142018,1765401032873,-500.0,0.00012599,2]
[398142019,1765401032882,-500.0,0.00012599,2]
[398142020,1765401032891,-505.51351684,0.00012599,2]
[398142021,1765401032900,-44.62358014,0.00012599,2]
[398142022,1765401033227,-441.77441299,0.00012599,2]
[398142023,1765401033237,-500.0,0.00012599,2]
[398142024,1765401033247,-94.91715443,0.00012599,2]
[398142025,1765401033259,-405.08284557,0.00012599,2]
[398142026,1765401033268,-445.971,0.00012599,2]
[398142027,1765401033278,-189.3208857,0.00012599,2]
[398142028,1765401033288,-14855.62011764,0.000126,2]
[398142079,1765401038485,-729.41544042,0.000126,2]
[398142081,1765401038498,-3331.7790253,0.000126,2]
[398142083,1765401038511,-4022.53102909,0.000126,2]
[398142085,1765401038523,-15805.95365329,0.000126,2]
[398142252,1765401041031,-3662.62585884,0.000126,2]
[398142255,1765401041057,-7809.2039019,0.000126,2]
[398142258,1765401041069,-1366.13894056,0.000126,2]
[398142771,1765401046282,-4615.0,0.000126,2]
[398142773,1765401046293,-5795.28060091,0.000126,2]
[398142775,1765401046304,-56733.99962221,0.000126,2]
[398142785,1765401046395,-600.0,0.000126,2]
[398142788,1765401046407,-803.89556386,0.000126,2]
[398142978,1765401062445,345.74,6.5e-05,2]
[398142979,1765401062556,345.74,6.7e-05,2]
[398142981,1765401136583,269.93,6.5e-05,2]
[398142982,1765401136875,269.93,6.7e-05,2]
[398142983,1765401145207,167.06,6.734e-05,2]
[398142984,1765401198856,321.12,6.5e-05,2]
[398142985,1765401199145,321.12,6.7e-05,2]
[398142986,1765401224179,-321.12,6.8e-05,2]
[398142987,1765401224215,-150.0,6.9e-05,2]
[398142988,1765401224252,-321.12,7e-05,2]
[398142989,1765401224290,-321.12,7.1e-05,2]
[398142990,1765401224327,-321.12,7.3e-05,2]
[398142991,1765401224364,-321.12,7.4e-05,2]
[398142992,1765401224400,-321.12,7.6e-05,2]
[398142993,1765401224435,-321.12,7.7e-05,2]
[398142994,1765401224470,-321.12,7.9e-05,2]
[398142995,1765401224505,-321.12,8.1e-05,2]
[398142996,1765401224539,-321.12,8.2e-05,2]
[398142997,1765401224574,-321.12,8.4e-05,2]
[398142998,1765401224610,-321.12,8.5e-05,2]
[398142999,1765401224645,-321.12,8.7e-05,2]
[398143000,1765401224679,-321.12,8.8e-05,2]
[398143001,1765401224713,-177.0,8.9e-05,2]
[398143002,1765401224746,-54.65,8.998e-05,2]
[398143003,1765401225157,-245.35,8.998e-05,2]
[398143004,1765401225190,-280.0,8.999e-05,2]
[398143005,1765401225223,-321.12,9e-05,2]
[398143006,1765401225258,-321.12,9.1e-05,2]
[398143007,1765401225292,-321.12,9.3e-05,2]
[398143008,1765401225326,-321.12,9.4e-05,2]
[398143009,1765401225363,-300.0,9.588e-05,2]
[398143010,1765401225400,-300.0,9.588e-05,2]
[398143011,1765401225436,-300.0,9.588e-05,2]
[398143012,1765401225470,-300.0,9.588e-05,2]
[398143013,1765401225505,-300.0,9.588e-05,2]
[398143014,1765401225541,-300.0,9.588e-05,2]
[398143015,1765401225574,-300.0,9.588e-05,2]
[398143016,1765401225607,-300.0,9.588e-05,2]
[398143017,1765401225639,-300.0,9.588e-05,2]
[398143018,1765401225674,-300.0,9.588e-05,2]
[398143019,1765401226279,-80.35,9.588e-05,2]
[398143020,1765401226770,165.64,6.727e-05,2]
[398143021,1765401228002,-331.29,7.048e-05,2]
[398143022,1765401228034,-496.93,7.368e-05,2]
[398143023,1765401228066,-662.58,7.689e-05,2]
[398143024,1765401228100,-828.22,8.009e-05,2]
[398143025,1765401228134,-993.87,8.329e-05,2]
[398143026,1765401228167,-219.65,9.588e-05,2]
[398143027,1765401228200,-300.0,9.588e-05,2]
[398143028,1765401228231,-300.0,9.588e-05,2]
[398143029,1765401228263,-300.0,9.588e-05,2]
[398143030,1765401228293,-300.0,9.588e-05,2]
[398143031,1765401228421,-1159.51,8.65e-05,2]
[398143032,1765401228453,-600.0,9.588e-05,2]
[398143033,1765401228485,-321.12,9.6e-05,2]
[398143034,1765401228517,-321.12,9.7e-05,2]
[398143035,1765401228547,-420.0,9.898e-05,2]
[398143036,1765401228579,-321.12,9.9e-05,2]
[398143037,1765401228612,-321.12,0.0001,2]
[398143038,1765401228642,-321.12,0.000102,2]
[398143039,1765401228672,-321.12,0.000103,2]
[398143040,1765401228703,-321.12,0.000105,2]
[398143041,1765401228734,-425.31,0.00010547,2]
[398143042,1765401230596,-1325.16,8.97e-05,2]
[398143043,1765401230626,-1490.8,9.29e-05,2]
[398143044,1765401230657,-1656.45,9.611e-05,2]
[398143045,1765401230688,-294.69,0.00010547,2]
[398143046,1765401230719,-144.69,0.000106,2]
[398143047,1765401233570,-176.43,0.000106,2]
[398143048,1765401233604,-321.12,0.000108,2]
[398143049,1765401233634,-204.0,0.000109,2]
[398143050,1765401233666,-321.12,0.000109,2]
[398143051,1765401233696,-201.94970749,0.00011036,2]
[398143052,1765401233739,-321.12,0.000111,2]
[398143053,1765401233772,-321.12,0.000113,2]
[398143054,1765401233804,-321.12,0.000114,2]
[398143055,1765401233835,-321.12,0.000116,2]
[398143056,1765401233867,-864.0,0.00011601,2]
[398143057,1765401233900,-321.12,0.000117,2]
[398143058,1765401233931,-321.12,0.000119,2]
[398143059,1765401233962,-321.12,0.00012,2]
[398143060,1765401233993,-427.09058502,0.00012177,2]
[398143061,1765401234240,-472.90941498,0.00012177,2]
[398143062,1765401234272,-321.12,0.000122,2]
[398143063,1765401234303,-321.12,0.000123,2]
[398143064,1765401234331,-3558.92988729,0.00012463,2]
[398143065,1765401234361,-175.89354135,0.000125,2]
[398143066,1765401240016,-321.12,0.000125,2]
[398143067,1765401240048,-500.0,0.00012573,2]
[398143068,1765401240079,-500.0,0.00012573,2]
[398143069,1765401240108,-502.20646407,0.00012573,2]
[398143070,1765401240139,-299.77441939,0.00012599,2]
[398143071,1765401240169,-500.0,0.00012599,2]
[398143072,1765401240199,-399.06136486,0.00012599,2]
[398143073,1765401240228,-500.0,0.00012599,2]
[398143074,1765401240259,-463.63363136,0.00012599,2]
[398143075,1765401240287,-358.60031225,0.00012599,2]
[398143076,1765401240316,-320.6935828,0.00012599,2]
[398143077,1765401245757,-2329.0390836,0.0001102,2]
[398143078,1765401246681,155.81,6.5e-05,2]
[398143079,1765401248872,-155.81,6.9e-05,2]
[398143080,1765401248904,-155.81,7.2e-05,2]
[398143081,1765401248935,-155.81,7.6e-05,2]
[398143082,1765401248967,-155.81,7.9e-05,2]
[398143083,1765401248998,-155.81,8.3e-05,2]
[398143084,1765401249031,-3099.9781672,0.0001102,2]
[398143085,1765401308123,155.81,6.5e-05,2]
[398143087,1765401367606,155.81,6.5e-05,2]
[398143088,1765401377183,150.0,6.732e-05,2]
[398143089,1765401427984,155.81,6.5e-05,2]
[398143090,1765401448923,150.0,6.729e-05,2]
[398143091,1765401488645,155.81,6.5e-05,2]
[398143092,1765401518880,150.0,6.731e-05,2]
[398143093,1765401547452,155.81,6.5e-05,2]
[398143094,1765401589492,150.0,6.732e-05,2]
[398143095,1765401606442,155.81,6.5e-05,2]
[398143097,1765401666472,155.8,6.5e-05,2]
[398143098,1765401726535,155.81,6.5e-05,2]
[398143099,1765401729427,150.0,6.731e-05,2]
[398143100,1765401785909,155.8,6.5e-05,2]
[398143101,1765401802110,150.0,6.735e-05,2]
[398143102,1765401845444,155.81,6.5e-05,2]
[398143103,1765401873641,150.0,6.738e-05,2]
[398143104,1765401905104,155.8,6.5e-05,2]
[398143107,1765401966994,155.81,6.5e-05,2]
[398143109,1765402016769,150.0,6.731e-05,2]
[398143111,1765402024628,155.8,6.5e-05,2]
[398143114,1765402084402,155.81,6.5e-05,2]
[398143115,1765402085769,150.0,6.733e-05,2]
[398143116,1765402144569,155.8,6.5e-05,2]
[398143117,1765402153768,150.0,6.732e-05,2]
[398143122,1765402224074,150.0,6.733e-05,2]
[398143181,1765402232695,-150.0,7.052e-05,2]
[398143183,1765402232704,-520.0,7.052e-05,2]
[398143185,1765402232714,-150.0,7.058e-05,2]
[398143187,1765402232723,-150.0,7.33e-05,2]
[398143189,1765402232735,-150.0,7.634e-05,2]
[398143191,1765402232745,-154.45,8.016e-05,2]
[398143193,1765402232755,-185.35,8.336e-05,2]
[398143195,1765402232765,-216.24,8.657e-05,2]
[398143197,1765402232775,-247.13,8.977e-05,2]
[398143199,1765402232790,-177.0,9.058e-05,2]
[398143200,1765402232799,-278.02,9.298e-05,2]
[398143202,1765402232813,-308.91,9.619e-05,2]
[398143203,1765402232822,-2241.9536656,0.0001102,2]
[398143204,1765402232832,-204.0,0.00011058,2]
[398143205,1765402232841,-300.0,0.00011129,2]
[398143206,1765402232851,-300.0,0.00011129,2]
[398143207,1765402232864,-7855.9782019,0.0001113,2]
[398143208,1765402232874,-1838.2820824,0.0001113,2]
[398143209,1765402232884,-359.338339,0.0001113,2]
[398143210,1765402232894,-300.0,0.00011352,2]
[398143211,1765402232905,-300.0,0.00011352,2]
[398143212,1765402232915,-300.0,0.00011352,2]
[398143213,1765402232925,-300.0,0.00011352,2]
[398143214,1765402232935,-300.0,0.00011352,2]
[398143215,1765402232945,-300.0,0.00011352,2]
[398143216,1765402232956,-300.0,0.00011352,2]
[398143217,1765402232967,-300.0,0.00011352,2]
[398143218,1765402232978,-300.0,0.00011352,2]
[398143219,1765402232989,-300.0,0.00011352,2]
[398143220,1765402232999,-300.0,0.00011352,2]
[398143221,1765402233009,-300.0,0.00011352,2]
[398143222,1765402233019,-300.0,0.00011352,2]
[398143223,1765402233030,-300.0,0.00011352,2]
[398143224,1765402233042,-300.0,0.00011352,2]
[398143225,1765402233052,-401.70950385,0.00011462,2]
[398143226,1765402233063,-723.07710693,0.00011462,2]
[398143227,1765402233073,-1285.47041232,0.00011462,2]
[398143228,1765402233084,-2006.53897173,0.00011462,2]
[398143229,1765402233093,-2579.17784983,0.00012097,2]
[398143230,1765402233103,-3558.92988729,0.00012151,2]
[398143231,1765402233119,-160.0,0.0001216,2]
[398143232,1765402233129,-160.0,0.0001216,2]
[398143233,1765402233138,-160.0,0.0001216,2]
[398143234,1765402233148,-160.0,0.0001216,2]
[398143235,1765402233158,-160.0,0.0001216,2]
[398143236,1765402233168,-250.0,0.0001216,2]
[398143237,1765402233179,-196.68267047,0.0001216,2]
[398143238,1765402233189,-250.0,0.0001216,2]
[398143239,1765402233199,-250.0,0.0001216,2]
[398143240,1765402233208,-500.0,0.0001216,2]
[398143241,1765402233218,-250.0,0.0001216,2]
[398143242,1765402233227,-500.0,0.0001216,2]
[398143243,1765402233237,-240.23590508,0.0001216,2]
[398143244,1765402233308,-250.0,0.0001216,2]
[398143245,1765402233319,-500.0,0.0001216,2]
[398143246,1765402233329,-250.0,0.0001216,2]
[398143247,1765402233339,-500.0,0.0001216,2]
[398143248,1765402233349,-250.0,0.0001216,2]
[398143249,1765402233362,-500.0,0.0001216,2]
[398143250,1765402233372,-250.0,0.0001216,2]
[398143251,1765402233382,-250.0,0.0001216,2]
[398143252,1765402233393,-500.0,0.0001216,2]
[398143253,1765402233402,-250.0,0.0001216,2]
[398143254,1765402233412,-500.0,0.0001216,2]
[398143255,1765402233421,-250.0,0.0001216,2]
[398143256,1765402233431,-250.0,0.0001216,2]
[398143257,1765402233440,-500.0,0.0001216,2]
[398143258,1765402233450,-250.0,0.0001216,2]
[398143259,1765402233459,-250.0,0.0001216,2]
[398143260,1765402233468,-250.0,0.0001216,2]
[398143261,1765402233480,-250.0,0.0001216,2]
[398143262,1765402233489,-250.0,0.0001216,2]
[398143263,1765402233498,-192.21725494,0.0001216,2]
[398143264,1765402233507,-250.0,0.0001216,2]
[398143265,1765402233517,-252.82840663,0.0001216,2]
[398143266,1765402233525,-971.42888711,0.0001216,2]
[398143267,1765402233535,-533.88981491,0.0001216,2]
[398143268,1765402233544,-1000.0,0.0001216,2]
[398143269,1765402233553,-250.0,0.0001216,2]
[398143270,1765402233563,-250.0,0.0001216,2]
[398143271,1765402233572,-250.0,0.0001216,2]
[398143272,1765402233582,-250.0,0.0001216,2]
[398143273,1765402233592,-250.0,0.0001216,2]
[398143274,1765402233601,-500.0,0.00012167,2]
[398143275,1765402233613,-500.0,0.00012167,2]
[398143276,1765402233622,-500.0,0.00012167,2]
[398143277,1765402233631,-500.0,0.00012167,2]
[398143278,1765402233641,-500.0,0.00012167,2]
[398143279,1765402233651,-500.0,0.00012167,2]
[398143280,1765402233661,-500.0,0.00012167,2]
[398143281,1765402233670,-500.0,0.00012167,2]
[398143282,1765402233679,-500.0,0.00012167,2]
[398143283,1765402233689,-500.0,0.00012167,2]
[398143284,1765402233699,-500.0,0.00012167,2]
[398143285,1765402233708,-500.0,0.00012167,2]
[398143286,1765402233717,-500.0,0.00012167,2]
[398143287,1765402233727,-551.43747706,0.00012167,2]
[398143288,1765402233737,-1100.0,0.00012177,2]
[398143289,1765402233746,-359.338339,0.00012308,2]
[398143290,1765402233755,-600.0,0.00012421,2]
[398143291,1765402233764,-391.981,0.00012463,2]
[398143292,1765402233774,-1711.624969,0.0001247,2]
[398143293,1765402233783,-365.74538846,0.00012499,2]
[398143294,1765402233792,-165.15533257,0.00012499,2]
[398143295,1765402233802,-337.76519589,0.00012499,2]
[398143296,1765402233812,-82532.16281005,0.000125,2]
[398143297,1765402233824,-1273.65178104,0.000125,2]
[398143298,1765402233835,-2445.36144864,0.000125,2]
[398143299,1765402233847,-6004.66872812,0.000125,2]
[398143317,1765402238486,-250.0,0.0001216,2]
[398143319,1765402238496,-250.0,0.0001216,2]
[398143321,1765402238506,-250.0,0.0001216,2]
[398143323,1765402238517,-250.0,0.0001216,2]
[398143325,1765402238527,-250.0,0.0001216,2]
[398143327,1765402238537,-250.0,0.0001216,2]
[398143329,1765402238547,-250.0,0.0001216,2]
[398143330,1765402238556,-250.0,0.0001216,2]
[398143332,1765402238565,-2819.5,0.000125,2]
[398143335,1765402238578,-16844.9999999,0.000125,2]
[398143338,1765402238599,-29557.75849643,0.000125,2]
[398143340,1765402238613,-19520.29374046,0.000125,2]
[398143342,1765402238625,-557.13363298,0.000125,2]
[398143344,1765402238636,-333.71912776,0.000125,2]
[398143347,1765402238652,-728110.75023462,0.000125,2]
[398143349,1765402238661,-151.0,0.000125,2]
[398143351,1765402238671,-227.709748,0.000125,2]
[398143352,1765402238680,-500.0,0.00012573,2]
[398143354,1765402238690,-503.0,0.00012573,2]
[398143356,1765402238699,-500.0,0.00012592,2]
[398143358,1765402238709,-151.0,0.00012592,2]
[398143360,1765402238718,-500.0,0.00012592,2]
[398143362,1765402238727,-151.0,0.00012592,2]
[398143364,1765402238737,-151.0,0.00012592,2]
[398143366,1765402238747,-500.0,0.00012592,2]
[398143368,1765402238757,-151.0,0.00012592,2]
[398143369,1765402238768,-438.0,0.00012592,2]
[398143371,1765402238778,-151.0,0.00012592,2]
[398143372,1765402238789,-151.0,0.00012592,2]
[398143373,1765402238799,-151.0,0.00012592,2]
[398143374,1765402238809,-151.0,0.00012592,2]
[398143375,1765402238818,-151.0,0.00012592,2]
[398143376,1765402238828,-500.0,0.00012592,2]
[398143377,1765402238837,-151.0,0.00012592,2]
[398143378,1765402238847,-500.0,0.00012592,2]
[398143379,1765402238857,-500.0,0.00012592,2]
[398143380,1765402238866,-151.0,0.00012592,2]
[398143381,1765402238875,-151.0,0.00012592,2]
[398143382,1765402238885,-151.0,0.00012592,2]
[398143383,1765402238895,-500.0,0.00012592,2]
[398143384,1765402238906,-151.0,0.00012592,2]
[398143385,1765402238916,-500.0,0.00012592,2]
[398143386,1765402238927,-151.0,0.00012592,2]
[398143387,1765402238937,-500.0,0.00012592,2]
[398143388,1765402238948,-500.0,0.00012592,2]
[398143389,1765402238959,-2000.0,0.00012599,2]
[398143390,1765402238970,-1752.9056743,0.00012619,2]
[398143391,1765402238980,-564.08156009,0.00012645,2]
[398143392,1765402238992,-192.4641948,0.00012658,2]
[398143393,1765402239003,-380.2997432,0.00012658,2]
[398143394,1765402239013,-192.4641948,0.00012658,2]
[398143395,1765402239023,-192.4641948,0.00012658,2]
[398143396,1765402239032,-214.86370548,0.00012661,2]
[398143397,1765402239042,-1593.1700711,0.00012695,2]
[398143398,1765402239052,-388.44600528,0.000127,2]
[398143399,1765402239061,-699.2028095,0.000127,2]
[398143400,1765402239071,-249.94263169,0.000127,2]
[398143401,1765402239080,-1243.02721688,0.000127,2]
[398143402,1765402239090,-285.64872193,0.000127,2]
[398143403,1765402239100,-1940.28779635,0.000127,2]
[398143404,1765402239111,-151.0,0.000127,2]
[398143405,1765402239121,-151.0,0.000127,2]
[398143406,1765402239131,-151.0,0.000127,2]
[398143407,1765402239140,-445.87980189,0.000127,2]
[398143408,1765402239150,-273.41378757,0.000127,2]
[398143409,1765402239159,-553.64373807,0.00012708,2]
[398143410,1765402239169,-1000.0,0.00012708,2]
[398143411,1765402239179,-500.0,0.0001271,2]
[398143412,1765402239188,-503.0,0.0001271,2]
[398143413,1765402239197,-500.0,0.0001272,2]
[398143414,1765402239207,-500.0,0.0001272,2]
[398143415,1765402239216,-500.0,0.0001272,2]
[398143416,1765402239225,-500.0,0.0001272,2]
[398143417,1765402239235,-500.0,0.0001272,2]
[398143418,1765402239244,-500.0,0.0001272,2]
[398143419,1765402239254,-500.0,0.0001272,2]
[398143420,1765402239263,-500.0,0.0001272,2]
[398143421,1765402239273,-500.0,0.0001272,2]
[398143422,1765402239282,-500.0,0.0001272,2]
[398143423,1765402239292,-500.0,0.0001272,2]
[398143424,1765402239301,-500.0,0.0001272,2]
[398143425,1765402239311,-500.0,0.0001272,2]
[398143426,1765402239320,-500.0,0.0001272,2]
[398143427,1765402239330,-500.0,0.0001272,2]
[398143428,1765402239339,-500.0,0.0001272,2]
[398143429,1765402239348,-500.0,0.0001272,2]
[398143430,1765402239358,-500.0,0.0001272,2]
[398143431,1765402239368,-512.41,0.0001272,2]
[398143432,1765402239377,-500.0,0.0001272,2]
[398143433,1765402239390,-500.0,0.0001272,2]
[398143434,1765402239399,-500.0,0.0001272,2]
[398143435,1765402239409,-500.0,0.0001272,2]
[398143436,1765402239418,-500.0,0.0001272,2]
[398143437,1765402239428,-500.0,0.0001272,2]
[398143438,1765402239438,-500.0,0.0001272,2]
[398143439,1765402239447,-500.0,0.0001272,2]
[398143440,1765402239456,-500.0,0.0001272,2]
[398143441,1765402239468,-500.0,0.0001272,2]
[398143442,1765402239478,-500.0,0.0001272,2]
[398143443,1765402239487,-500.0,0.0001272,2]
[398143444,1765402239497,-500.0,0.0001272,2]
[398143445,1765402239507,-500.0,0.0001272,2]
[398143446,1765402239516,-500.0,0.0001272,2]
[398143447,1765402239524,-500.0,0.0001272,2]
[398143448,1765402239533,-500.0,0.0001272,2]
[398143449,1765402239542,-500.0,0.0001272,2]
[398143450,1765402239551,-500.0,0.0001272,2]
[398143451,1765402239560,-500.0,0.0001272,2]
[398143452,1765402239569,-500.0,0.0001272,2]
[398143453,1765402239578,-500.0,0.0001272,2]
[398143454,1765402239588,-500.0,0.0001272,2]
[398143455,1765402239597,-500.0,0.0001272,2]
[398143456,1765402239606,-500.0,0.0001272,2]
[398143457,1765402239615,-500.0,0.0001272,2]
[398143458,1765402239624,-500.0,0.0001272,2]
[398143459,1765402239633,-500.0,0.0001272,2]
[398143460,1765402239642,-500.0,0.0001272,2]
[398143461,1765402239651,-500.0,0.0001272,2]
[398143462,1765402239660,-500.0,0.0001272,2]
[398143463,1765402239669,-500.0,0.0001272,2]
[398143464,1765402239678,-500.0,0.0001272,2]
[398143465,1765402239688,-500.0,0.0001272,2]
[398143466,1765402239697,-500.0,0.0001272,2]
[398143467,1765402239706,-500.0,0.0001272,2]
[398143468,1765402239716,-500.0,0.0001272,2]
[398143469,1765402239726,-500.0,0.0001272,2]
[398143470,1765402239735,-500.0,0.0001272,2]
[398143471,1765402239745,-500.0,0.0001272,2]
[398143472,1765402239754,-500.0,0.0001272,2]
[398143473,1765402239763,-500.0,0.0001272,2]
[398143474,1765402239773,-500.0,0.0001272,2]
[398143475,1765402239783,-500.0,0.0001272,2]
[398143476,1765402239792,-500.0,0.0001272,2]
[398143477,1765402239802,-500.0,0.0001272,2]
[398143478,1765402239811,-500.0,0.0001272,2]
[398143479,1765402239822,-500.0,0.0001272,2]
[398143480,1765402239831,-500.0,0.0001272,2]
[398143481,1765402239841,-500.0,0.0001272,2]
[398143482,1765402239851,-500.0,0.0001272,2]
[398143483,1765402239861,-500.0,0.0001272,2]
[398143484,1765402239870,-500.0,0.0001272,2]
[398143485,1765402239880,-264.68,0.0001272,2]
[398143486,1765402239889,-500.0,0.0001272,2]
[398143487,1765402239899,-292.116022,0.0001272,2]
[398143488,1765402239908,-292.116022,0.0001272,2]
[398143489,1765402239917,-292.116022,0.0001272,2]
[398143490,1765402239927,-292.116022,0.0001272,2]
[398143491,1765402239936,-151.0,0.0001272,2]
[398143492,1765402239946,-151.0,0.0001272,2]
[398143493,1765402239955,-500.0,0.00012729,2]
[398143494,1765402239965,-151.0,0.00012729,2]
[398143495,1765402239974,-500.0,0.00012729,2]
[398143496,1765402239984,-151.0,0.00012729,2]
[398143497,1765402239993,-152.33266293,0.00012729,2]
[398143498,1765402240003,-500.0,0.00012729,2]
[398143499,1765402240012,-151.0,0.00012729,2]
[398143500,1765402240021,-151.0,0.00012729,2]
[398143501,1765402240030,-151.0,0.00012729,2]
[398143502,1765402240039,-151.0,0.00012729,2]
[398143503,1765402240048,-198.84203383,0.00012729,2]